[Event "ETCC Women 2013"]
[Site "Warsaw"]
[Date "2013.11.10"]
[Round "3"]
[White "Novak, Ksenija"]
[Black "Stetsko, Lanita"]
[Result "1/2-1/2"]
[ECO "A06"]
[WhiteElo "2082"]
[BlackElo "2226"]
[PlyCount "164"]
[EventDate "2013.??.??"]
[EventCountry "POL"]
[WhiteTeam "Slovenia"]
[BlackTeam "Belarus"]
[WhiteTeamCountry "SLO"]
[BlackTeamCountry "BLR"]
[TimeControl "40/5400+30:1800+30"]

1. Nf3 {[%emt 0:00:00]} d5 {[%emt 0:00:00]} 2. g3 {[%emt 0:00:11]} Nf6 {[%emt
0:00:00]} 3. Bg2 {[%emt 0:00:19]} e6 {[%emt 0:00:13]} 4. c4 {[%emt 0:03:15]}
Be7 {[%emt 0:00:31]} 5. d4 {[%emt 0:04:49]} O-O {[%emt 0:03:05]} 6. O-O {[%emt
0:00:39]} dxc4 {[%emt 0:01:12]} 7. Qc2 {[%emt 0:01:25]} a6 {[%emt 0:02:43]} 8.
a4 {[%emt 0:00:33]} Bd7 {[%emt 0:07:21]} 9. Qxc4 {[%emt 0:11:42]} Bc6 {[%emt 0:
01:48]} 10. Nc3 {[%emt 0:07:08]} b5 {[%emt 0:09:59]} 11. Qd3 {[%emt 0:10:52]}
b4 {[%emt 0:01:38]} 12. Nd1 {[%emt 0:00:45]} Be4 {[%emt 0:04:33]} 13. Qc4 {
[%emt 0:04:35]} c5 {[%emt 0:26:16]} 14. dxc5 {[%emt 0:13:42]} Nc6 {[%emt 0:05:
33]} 15. Bf4 {[%emt 0:15:46]} Bd5 {[%emt 0:02:53]} 16. Qd3 {[%emt 0:02:23]} Nd7
{[%emt 0:10:24]} 17. Ne3 {[%emt 0:07:29]} Nxc5 {[%emt 0:01:14]} 18. Qd1 {[%emt
0:00:23]} Bb3 {[%emt 0:01:51]} 19. Qxd8 {[%emt 0:06:20]} Raxd8 {[%emt 0:00:41]}
20. Rfc1 {[%emt 0:00:18]} f6 {[%emt 0:05:24]} 21. Bc7 {[%emt 0:00:59]} Rc8 {
[%emt 0:00:37]} 22. Bb6 {[%emt 0:01:25]} Nxa4 {[%emt 0:08:43]} 23. Nd2 {[%emt
0:00:34]} Nxb6 {[%emt 0:00:30]} 24. Nxb3 {[%emt 0:00:05]} Nb8 {[%emt 0:00:23]}
25. Bb7 {[%emt 0:01:43]} Rxc1+ {[%emt 0:00:26]} 26. Rxc1 {[%emt 0:00:16]} Rd8 {
[%emt 0:01:18]} 27. Nc4 {[%emt 0:01:57]} Nxc4 {[%emt 0:01:43]} 28. Rxc4 {[%emt
0:00:05]} Kf7 {[%emt 0:00:19]} 29. Na5 {[%emt 0:01:39]} Rd1+ {[%emt 0:00:33]}
30. Kg2 {[%emt 0:00:06]} Rd2 {[%emt 0:00:36]} 31. Rc8 {[%emt 0:00:55]} Nd7 {
[%emt 0:01:16]} 32. Bxa6 {[%emt 0:00:35]} Rxb2 {[%emt 0:00:41]} 33. Nc4 {[%emt
0:00:26]} Ra2 {[%emt 0:00:44]} 34. Bb5 {[%emt 0:00:46]} Ra7 {[%emt 0:00:13]}
35. e4 {[%emt 0:02:17]} Rb7 {[%emt 0:01:31]} 36. Bc6 {[%emt 0:00:22]} Ra7 {
[%emt 0:00:05]} 37. Bb5 {[%emt 0:01:12]} h6 {[%emt 0:00:56]} 38. e5 {[%emt 0:
00:33]} b3 {[%emt 0:00:31]} 39. Bxd7 {[%emt 0:00:23]} Rxd7 {[%emt 0:00:05]} 40.
Rb8 {[%emt 0:00:00]} Rd3 {[%emt 0:00:00]} 41. Rb7 {[%emt 0:10:41]} Ke8 {[%emt
0:04:01]} 42. Nd6+ {[%emt 0:15:36]} Bxd6 {[%emt 0:00:24]} 43. exd6 {[%emt 0:00:
03]} g5 {[%emt 0:07:53]} 44. h3 {[%emt 0:00:08]} h5 {[%emt 0:01:01]} 45. h4 {
[%emt 0:01:39]} gxh4 {[%emt 0:00:37]} 46. gxh4 {[%emt 0:00:04]} Rxd6 {[%emt 0:
00:19]} 47. Rxb3 {[%emt 0:00:06]} Kf7 {[%emt 0:00:10]} 48. Rb4 {[%emt 0:01:24]}
Kg6 {[%emt 0:00:20]} 49. Kg3 {[%emt 0:00:19]} e5 {[%emt 0:00:43]} 50. f3 {
[%emt 0:00:13]} Kf5 {[%emt 0:00:58]} 51. Ra4 {[%emt 0:00:40]} Rd4 {[%emt 0:02:
09]} 52. Ra8 {[%emt 0:01:08]} Rd3 {[%emt 0:01:01]} 53. Ra4 {[%emt 0:00:00]} Rb3
{[%emt 0:02:46]} 54. Rc4 {[%emt 0:00:04]} Re3 {[%emt 0:01:55]} 55. Kf2 {[%emt
0:00:48]} Rd3 {[%emt 0:00:24]} 56. Kg3 {[%emt 0:00:06]} Rd4 {[%emt 0:02:19]}
57. Rc5 {[%emt 0:00:56]} Kg6 {[%emt 0:02:40]} 58. Rc6 {[%emt 0:00:20]} e4 {
[%emt 0:00:17]} 59. fxe4 {[%emt 0:00:17]} Rxe4 {[%emt 0:00:02]} 60. Rc5 {[%emt
0:03:00]} Re5 {[%emt 0:01:05]} 61. Rc4 {[%emt 0:00:38]} Ra5 {[%emt 0:00:38]}
62. Rb4 {[%emt 0:00:27]} Kf5 {[%emt 0:01:04]} 63. Rf4+ {[%emt 0:00:50]} Ke5 {
[%emt 0:00:05]} 64. Rb4 {[%emt 0:00:11]} f5 {[%emt 0:00:54]} 65. Rb8 {[%emt 0:
00:54]} f4+ {[%emt 0:05:36]} 66. Kf3 {[%emt 0:00:34]} Ra3+ {[%emt 0:00:07]} 67.
Kf2 {[%emt 0:00:09]} Kf5 {[%emt 0:00:29]} 68. Rg8 {[%emt 0:00:23]} Rb3 {[%emt
0:02:54]} 69. Rg7 {[%emt 0:01:06]} Rh3 {[%emt 0:02:26]} 70. Rg5+ {[%emt 0:01:
59]} Ke4 {[%emt 0:00:03]} 71. Rxh5 {[%emt 0:00:06]} Rh2+ {[%emt 0:00:08]} 72.
Kg1 {[%emt 0:00:06]} Ra2 {[%emt 0:00:26]} 73. Rb5 {[%emt 0:00:26]} Kf3 {[%emt
0:00:13]} 74. Rb3+ {[%emt 0:00:11]} Kg4 {[%emt 0:00:18]} 75. h5 {[%emt 0:01:10]
} Kxh5 {[%emt 0:01:51]} 76. Kf1 {[%emt 0:00:10]} Kg4 {[%emt 0:00:27]} 77. Rc3 {
[%emt 0:00:08]} Rb2 {[%emt 0:00:32]} 78. Ra3 {[%emt 0:00:05]} Rb4 {[%emt 0:00:
25]} 79. Kf2 {[%emt 0:00:13]} f3 {[%emt 0:00:40]} 80. Ra8 {[%emt 0:00:43]} Rb2+
{[%emt 0:00:18]} 81. Kf1 {[%emt 0:00:16]} Rb1+ {[%emt 0:00:37]} 82. Kf2 {[%emt
0:00:06]} Rb2+ {[%emt 0:00:07]} 1/2-1/2

[Event "ETCC Women 2013"]
[Site "Warsaw"]
[Date "2013.11.10"]
[Round "3"]
[White "Olsarova, Karolina"]
[Black "Corke, Anya S"]
[Result "1-0"]
[ECO "B40"]
[WhiteElo "2275"]
[BlackElo "2276"]
[PlyCount "79"]
[EventDate "2013.??.??"]
[EventCountry "POL"]
[WhiteTeam "Czech Republic"]
[BlackTeam "England"]
[WhiteTeamCountry "CZE"]
[BlackTeamCountry "ENG"]
[TimeControl "40/5400+30:1800+30"]

1. e4 {[%emt 0:00:00]} c5 {[%emt 0:00:00]} 2. Nf3 {[%emt 0:00:00]} e6 {[%emt 0:
00:00]} 3. d3 {[%emt 0:00:00]} b6 {[%emt 0:03:48]} 4. g3 {[%emt 0:00:29]} Bb7 {
[%emt 0:00:05]} 5. Bg2 {[%emt 0:00:06]} d6 {[%emt 0:00:13]} 6. O-O {[%emt 0:00:
25]} Nd7 {[%emt 0:00:06]} 7. c4 {[%emt 0:01:20]} Ngf6 {[%emt 0:02:47]} 8. Nc3 {
[%emt 0:00:34]} Be7 {[%emt 0:00:48]} 9. Ng5 {[%emt 0:03:49]} Qc7 {[%emt 0:06:
23]} 10. f4 {[%emt 0:01:22]} a6 {[%emt 0:01:17]} 11. Qe2 {[%emt 0:02:28]} Rb8 {
[%emt 0:02:34]} 12. Bd2 {[%emt 0:04:49]} O-O {[%emt 0:15:41]} 13. Rae1 {[%emt
0:04:27]} h6 {[%emt 0:05:59]} 14. Nh3 {[%emt 0:02:51]} Qd8 {[%emt 0:08:31]} 15.
Nf2 {[%emt 0:17:38]} b5 {[%emt 0:07:24]} 16. cxb5 {[%emt 0:10:29]} axb5 {[%emt
0:00:15]} 17. Nxb5 {[%emt 0:01:03]} Ba6 {[%emt 0:02:13]} 18. a4 {[%emt 0:08:47]
} Bxb5 {[%emt 0:01:41]} 19. axb5 {[%emt 0:00:06]} Rxb5 {[%emt 0:01:17]} 20. Bc1
{[%emt 0:00:57]} Rb4 {[%emt 0:06:17]} 21. h4 {[%emt 0:10:47]} Nh7 {[%emt 0:05:
12]} 22. Ng4 {[%emt 0:04:45]} h5 {[%emt 0:08:58]} 23. Ne3 {[%emt 0:03:36]} g6 {
[%emt 0:02:58]} 24. Nc4 {[%emt 0:07:08]} Ndf6 {[%emt 0:05:24]} 25. f5 {[%emt 0:
05:19]} Ng4 {[%emt 0:05:50]} 26. Bh3 {[%emt 0:03:51]} Nhf6 {[%emt 0:00:53]} 27.
Bg5 {[%emt 0:02:00]} gxf5 {[%emt 0:03:10]} 28. exf5 {[%emt 0:01:26]} e5 {[%emt
0:00:01]} 29. Ra1 {[%emt 0:02:25]} Qc7 {[%emt 0:03:50]} 30. Bxg4 {[%emt 0:01:
09]} Nxg4 {[%emt 0:00:05]} 31. f6 {[%emt 0:00:10]} Bd8 {[%emt 0:00:10]} 32. Rf5
{[%emt 0:00:48]} d5 {[%emt 0:00:56]} 33. Nxe5 {[%emt 0:00:41]} Re8 {[%emt 0:00:
02]} 34. Re1 {[%emt 0:00:37]} Qb8 {[%emt 0:01:15]} 35. Bf4 {[%emt 0:00:29]}
Bxf6 {[%emt 0:00:24]} 36. Nxg4 {[%emt 0:00:30]} Rxe2 {[%emt 0:00:51]} 37. Nxf6+
{[%emt 0:00:07]} Kh8 {[%emt 0:00:32]} 38. Rxe2 {[%emt 0:00:33]} Qa7 {[%emt 0:
00:35]} 39. Re8+ {[%emt 0:00:17]} Kg7 {[%emt 0:00:02]} 40. Rg8# {[%emt 0:00:00]
} 1-0

[Event "ETCC Women 2013"]
[Site "Warsaw"]
[Date "2013.11.10"]
[Round "3"]
[White "Orehek, Spela"]
[Black "Beinenson, Katsiaryna"]
[Result "1/2-1/2"]
[ECO "B24"]
[WhiteElo "2026"]
[BlackElo "1964"]
[PlyCount "184"]
[EventDate "2013.??.??"]
[EventCountry "POL"]
[WhiteTeam "Slovenia"]
[BlackTeam "Belarus"]
[WhiteTeamCountry "SLO"]
[BlackTeamCountry "BLR"]
[TimeControl "40/5400+30:1800+30"]

1. e4 {[%emt 0:00:00]} c5 {[%emt 0:00:00]} 2. Nc3 {[%emt 0:00:00]} Nc6 {[%emt
0:00:04]} 3. Bb5 {[%emt 0:00:20]} g6 {[%emt 0:06:57]} 4. Bxc6 {[%emt 0:00:53]}
dxc6 {[%emt 0:00:22]} 5. d3 {[%emt 0:00:14]} Bg7 {[%emt 0:05:08]} 6. Be3 {
[%emt 0:00:51]} b6 {[%emt 0:00:36]} 7. Qd2 {[%emt 0:00:33]} e5 {[%emt 0:05:53]}
8. Nge2 {[%emt 0:03:06]} Qe7 {[%emt 0:12:12]} 9. O-O {[%emt 0:03:19]} Nf6 {
[%emt 0:09:21]} 10. Bh6 {[%emt 0:07:18]} O-O {[%emt 0:09:32]} 11. Bxg7 {[%emt
0:07:56]} Kxg7 {[%emt 0:00:06]} 12. f4 {[%emt 0:00:09]} exf4 {[%emt 0:00:46]}
13. Nxf4 {[%emt 0:00:20]} Ng4 {[%emt 0:04:55]} 14. Nce2 {[%emt 0:15:42]} Ba6 {
[%emt 0:06:54]} 15. c4 {[%emt 0:13:17]} Rad8 {[%emt 0:05:31]} 16. Rad1 {[%emt
0:03:57]} Kg8 {[%emt 0:05:54]} 17. b3 {[%emt 0:01:22]} Rd7 {[%emt 0:08:37]} 18.
h3 {[%emt 0:06:29]} Ne5 {[%emt 0:02:55]} 19. Qe3 {[%emt 0:02:20]} Rfd8 {[%emt
0:03:47]} 20. Ng3 {[%emt 0:14:06]} Rd6 {[%emt 0:03:37]} 21. Kh1 {[%emt 0:04:40]
} Qd7 {[%emt 0:01:03]} 22. Qf2 {[%emt 0:00:11]} Qe7 {[%emt 0:03:12]} 23. Qe3 {
[%emt 0:08:46]} Qg5 {[%emt 0:00:06]} 24. Qf2 {[%emt 0:02:12]} Rf6 {[%emt 0:02:
05]} 25. Qe3 {[%emt 0:02:46]} Nxd3 {[%emt 0:00:29]} 26. Rxd3 {[%emt 0:00:17]}
Rxd3 {[%emt 0:00:10]} 27. Qxd3 {[%emt 0:00:03]} Rxf4 {[%emt 0:00:05]} 28. Rxf4
{[%emt 0:01:49]} Qxf4 {[%emt 0:00:04]} 29. Ne2 {[%emt 0:00:24]} Qc7 {[%emt 0:
01:43]} 30. a4 {[%emt 0:00:40]} Bc8 {[%emt 0:00:38]} 31. Ng1 {[%emt 0:00:12]}
Qd7 {[%emt 0:01:13]} 32. Qg3 {[%emt 0:00:29]} a6 {[%emt 0:01:19]} 33. Qg5 {
[%emt 0:00:33]} Kg7 {[%emt 0:00:35]} 34. Nf3 {[%emt 0:00:26]} Qd1+ {[%emt 0:00:
20]} 35. Kh2 {[%emt 0:00:11]} Qd6+ {[%emt 0:00:32]} 36. e5 {[%emt 0:00:51]} Qe6
{[%emt 0:00:16]} 37. Qe3 {[%emt 0:00:38]} f6 {[%emt 0:00:50]} 38. exf6+ {[%emt
0:00:27]} Qxf6 {[%emt 0:00:10]} 39. a5 {[%emt 0:00:41]} Qd6+ {[%emt 0:00:33]}
40. Kh1 {[%emt 0:00:00]} bxa5 {[%emt 0:00:00]} 41. Qc3+ {[%emt 0:02:56]} Qf6 {
[%emt 0:16:31]} 42. Qxa5 {[%emt 0:07:00]} Qe7 {[%emt 0:01:55]} 43. Qb6 {[%emt
0:08:29]} Kh6 {[%emt 0:03:40]} 44. Qb8 {[%emt 0:06:06]} Bf5 {[%emt 0:02:02]}
45. Qf4+ {[%emt 0:01:52]} Kg7 {[%emt 0:00:06]} 46. Ne5 {[%emt 0:02:06]} Qd6 {
[%emt 0:03:37]} 47. Qe3 {[%emt 0:02:16]} Qd4 {[%emt 0:00:33]} 48. Qg3 {[%emt 0:
00:34]} Qe4 {[%emt 0:01:17]} 49. Nf3 {[%emt 0:00:49]} Qe7 {[%emt 0:02:27]} 50.
Qf4 {[%emt 0:01:11]} Bc2 {[%emt 0:01:01]} 51. Qd2 {[%emt 0:01:05]} Qe4 {[%emt
0:00:34]} 52. Qd7+ {[%emt 0:00:47]} Kf6 {[%emt 0:00:43]} 53. Qd6+ {[%emt 0:00:
28]} Qe6 {[%emt 0:01:35]} 54. Qd2 {[%emt 0:00:11]} Qf5 {[%emt 0:01:07]} 55.
Qd6+ {[%emt 0:00:32]} Kg7 {[%emt 0:00:13]} 56. Qe7+ {[%emt 0:00:26]} Qf7 {
[%emt 0:00:48]} 57. Qe3 {[%emt 0:00:31]} Kg8 {[%emt 0:00:48]} 58. Qxc5 {[%emt
0:01:46]} Bxb3 {[%emt 0:00:22]} 59. Qxc6 {[%emt 0:00:06]} Bxc4 {[%emt 0:00:44]}
60. Qc8+ {[%emt 0:00:13]} Kg7 {[%emt 0:00:08]} 61. Qc5 {[%emt 0:00:07]} Qd5 {
[%emt 0:01:07]} 62. Qe7+ {[%emt 0:00:11]} Qf7 {[%emt 0:00:26]} 63. Qe5+ {[%emt
0:00:08]} Qf6 {[%emt 0:00:29]} 64. Qc7+ {[%emt 0:00:08]} Bf7 {[%emt 0:00:04]}
65. Qa5 {[%emt 0:01:08]} h6 {[%emt 0:00:30]} 66. Kg1 {[%emt 0:01:18]} Qc6 {
[%emt 0:00:20]} 67. Ne5 {[%emt 0:00:46]} Qb5 {[%emt 0:01:02]} 68. Qa1 {[%emt 0:
00:05]} Kg8 {[%emt 0:00:25]} 69. Nxf7 {[%emt 0:00:55]} Kxf7 {[%emt 0:00:06]}
70. Qa2+ {[%emt 0:00:13]} Ke7 {[%emt 0:00:43]} 71. Qa3+ {[%emt 0:00:35]} Kd7 {
[%emt 0:00:13]} 72. Qf3 {[%emt 0:00:18]} Qc5+ {[%emt 0:00:41]} 73. Kh1 {[%emt
0:01:04]} Qc1+ {[%emt 0:00:38]} 74. Kh2 {[%emt 0:00:05]} Qc7+ {[%emt 0:00:24]}
75. Kh1 {[%emt 0:00:12]} g5 {[%emt 0:01:04]} 76. Qd5+ {[%emt 0:00:25]} Qd6 {
[%emt 0:00:25]} 77. Qb7+ {[%emt 0:00:18]} Ke6 {[%emt 0:00:06]} 78. Qe4+ {[%emt
0:00:25]} Kf6 {[%emt 0:00:22]} 79. Qf3+ {[%emt 0:00:08]} Kg6 {[%emt 0:00:11]}
80. Qe4+ {[%emt 0:00:11]} Kg7 {[%emt 0:01:10]} 81. Qb7+ {[%emt 0:00:11]} Kg8 {
[%emt 0:00:31]} 82. Qc8+ {[%emt 0:00:08]} Kf7 {[%emt 0:00:08]} 83. Qb7+ {[%emt
0:00:11]} Kg6 {[%emt 0:00:34]} 84. Qe4+ {[%emt 0:00:09]} Kf6 {[%emt 0:00:17]}
85. Qf3+ {[%emt 0:00:13]} Ke5 {[%emt 0:00:06]} 86. Qe3+ {[%emt 0:00:23]} Kd5 {
[%emt 0:00:05]} 87. Qb3+ {[%emt 0:00:29]} Kd4 {[%emt 0:00:29]} 88. Qa4+ {[%emt
0:00:24]} Kc3 {[%emt 0:01:25]} 89. Qa1+ {[%emt 0:00:11]} Kd2 {[%emt 0:00:43]}
90. Qa5+ {[%emt 0:00:27]} Ke2 {[%emt 0:00:52]} 91. Qa2+ {[%emt 0:00:08]} Ke3 {
[%emt 0:00:35]} 92. Qb3+ {[%emt 0:00:09]} Kd4 {[%emt 0:00:29]} 1/2-1/2

[Event "ETCC Women 2013"]
[Site "Warsaw"]
[Date "2013.11.10"]
[Round "3"]
[White "Ozturk, Kubra"]
[Black "Kachiani-Gersinska, Ketino"]
[Result "0-1"]
[ECO "E46"]
[WhiteElo "2281"]
[BlackElo "2365"]
[PlyCount "80"]
[EventDate "2013.??.??"]
[EventCountry "POL"]
[WhiteTeam "Turkey"]
[BlackTeam "Germany"]
[WhiteTeamCountry "TUR"]
[BlackTeamCountry "GER"]
[TimeControl "40/5400+30:1800+30"]

1. d4 {[%emt 0:00:00]} Nf6 {[%emt 0:00:37]} 2. c4 {[%emt 0:00:00]} e6 {[%emt 0:
00:44]} 3. Nc3 {[%emt 0:00:24]} Bb4 {[%emt 0:00:26]} 4. e3 {[%emt 0:00:30]} O-O
{[%emt 0:01:41]} 5. Nge2 {[%emt 0:00:24]} d5 {[%emt 0:01:02]} 6. a3 {[%emt 0:
00:12]} Be7 {[%emt 0:01:43]} 7. Nf4 {[%emt 0:01:55]} b6 {[%emt 0:00:19]} 8.
cxd5 {[%emt 0:01:36]} exd5 {[%emt 0:00:28]} 9. Bd3 {[%emt 0:04:36]} Bb7 {[%emt
0:00:58]} 10. O-O {[%emt 0:00:53]} Nbd7 {[%emt 0:06:33]} 11. Qf3 {[%emt 0:01:
20]} c6 {[%emt 0:18:57]} 12. Bd2 {[%emt 0:04:49]} Re8 {[%emt 0:04:55]} 13. Rac1
{[%emt 0:04:04]} Nf8 {[%emt 0:05:21]} 14. Rfd1 {[%emt 0:18:56]} Ng6 {[%emt 0:
02:36]} 15. e4 {[%emt 0:11:46]} dxe4 {[%emt 0:00:32]} 16. Nxe4 {[%emt 0:00:17]}
Nd5 {[%emt 0:01:14]} 17. Nxd5 {[%emt 0:01:22]} cxd5 {[%emt 0:01:00]} 18. Nc3 {
[%emt 0:00:52]} a6 {[%emt 0:13:40]} 19. g3 {[%emt 0:01:03]} Bf6 {[%emt 0:03:35]
} 20. Be3 {[%emt 0:03:26]} Ne7 {[%emt 0:00:47]} 21. h4 {[%emt 0:00:28]} Ng6 {
[%emt 0:05:45]} 22. h5 {[%emt 0:02:14]} Nf8 {[%emt 0:03:33]} 23. Ne2 {[%emt 0:
03:08]} Ne6 {[%emt 0:01:14]} 24. Qf5 {[%emt 0:06:18]} g6 {[%emt 0:00:41]} 25.
hxg6 {[%emt 0:00:14]} hxg6 {[%emt 0:02:00]} 26. Qh3 {[%emt 0:00:29]} Bc8 {
[%emt 0:01:00]} 27. Qg2 {[%emt 0:01:13]} Ng5 {[%emt 0:02:21]} 28. Nf4 {[%emt 0:
00:44]} Bg4 {[%emt 0:00:25]} 29. Be2 {[%emt 0:00:59]} Bxe2 {[%emt 0:01:22]} 30.
Nxe2 {[%emt 0:00:02]} Qd7 {[%emt 0:01:37]} 31. Nf4 {[%emt 0:01:11]} Rad8 {
[%emt 0:00:14]} 32. Rd3 {[%emt 0:00:45]} Kg7 {[%emt 0:02:11]} 33. Bd2 {[%emt 0:
06:44]} Re4 {[%emt 0:03:04]} 34. Re1 {[%emt 0:10:21]} Rde8 {[%emt 0:04:05]} 35.
Rc1 {[%emt 0:00:17]} Rh8 {[%emt 0:00:23]} 36. Bc3 {[%emt 0:03:50]} Rxf4 {[%emt
0:02:01]} 37. gxf4 {[%emt 0:00:57]} Nh3+ {[%emt 0:00:05]} 38. Rxh3 {[%emt 0:00:
06]} Rxh3 {[%emt 0:00:08]} 39. Re1 {[%emt 0:05:56]} Rh4 {[%emt 0:00:28]} 40.
Qf3 {[%emt 0:00:00]} Qf5 {[%emt 0:00:00]} 0-1

[Event "ETCC Women 2013"]
[Site "Warsaw"]
[Date "2013.11.10"]
[Round "3"]
[White "Paehtz, Elisabeth"]
[Black "Yildiz, Betul Cemre"]
[Result "1-0"]
[ECO "C58"]
[WhiteElo "2449"]
[BlackElo "2291"]
[PlyCount "61"]
[EventDate "2013.??.??"]
[EventCountry "POL"]
[WhiteTeam "Germany"]
[BlackTeam "Turkey"]
[WhiteTeamCountry "GER"]
[BlackTeamCountry "TUR"]
[TimeControl "40/5400+30:1800+30"]

1. e4 e5 2. Nf3 Nc6 3. Bc4 Nf6 4. Ng5 d5 5. exd5 Na5 6. Bb5+ c6 7. dxc6 bxc6 8.
Bd3 Nd5 9. h4 Nf4 10. Bf1 f6 11. Ne4 f5 12. Ng5 h6 13. Nh3 Ng6 14. h5 Ne7 15.
b4 Nb7 16. Bb2 Qd6 17. Na3 Be6 18. Nc4 Bxc4 19. Bxc4 Qxb4 20. Bb3 Qd6 21. Qe2
e4 22. g3 Nd5 23. Nf4 O-O-O 24. Ng6 Rg8 25. g4 Be7 26. Bxd5 cxd5 27. Be5 Qc5
28. Rh3 d4 29. Qa6 Bd6 30. Rb1 Rd7 31. Rhb3 1-0

[Event "ETCC Women 2013"]
[Site "Warsaw"]
[Date "2013.11.10"]
[Round "3"]
[White "Papp, Petra"]
[Black "Stojanovic, Andjelija"]
[Result "1/2-1/2"]
[ECO "B63"]
[WhiteElo "2300"]
[BlackElo "2293"]
[PlyCount "83"]
[EventDate "2013.??.??"]
[EventCountry "POL"]
[WhiteTeam "Hungary"]
[BlackTeam "Serbia"]
[WhiteTeamCountry "HUN"]
[BlackTeamCountry "SRB"]
[TimeControl "40/5400+30:1800+30"]

1. e4 {[%emt 0:00:00]} c5 {[%emt 0:00:00]} 2. Nf3 {[%emt 0:00:02]} Nc6 {[%emt
0:00:40]} 3. Nc3 {[%emt 0:01:10]} d6 {[%emt 0:05:50]} 4. d4 {[%emt 0:01:35]}
cxd4 {[%emt 0:00:12]} 5. Nxd4 {[%emt 0:00:08]} Nf6 {[%emt 0:01:13]} 6. Bg5 {
[%emt 0:00:47]} e6 {[%emt 0:05:19]} 7. Qd2 {[%emt 0:01:18]} Qb6 {[%emt 0:00:13]
} 8. Nb3 {[%emt 0:01:02]} Be7 {[%emt 0:00:18]} 9. Bxf6 {[%emt 0:00:44]} gxf6 {
[%emt 0:00:08]} 10. O-O-O {[%emt 0:02:58]} Bd7 {[%emt 0:04:29]} 11. f4 {[%emt
0:01:17]} O-O-O {[%emt 0:00:16]} 12. Be2 {[%emt 0:01:21]} h5 {[%emt 0:00:09]}
13. Rhf1 {[%emt 0:02:34]} Rdg8 {[%emt 0:04:24]} 14. g3 {[%emt 0:09:37]} Na5 {
[%emt 0:18:42]} 15. Kb1 {[%emt 0:09:26]} Nxb3 {[%emt 0:04:21]} 16. cxb3 {[%emt
0:01:15]} Kb8 {[%emt 0:01:59]} 17. Bf3 {[%emt 0:17:50]} Qb4 {[%emt 0:20:39]}
18. Qe2 {[%emt 0:02:50]} h4 {[%emt 0:03:40]} 19. g4 {[%emt 0:01:46]} Rc8 {
[%emt 0:05:34]} 20. Qe3 {[%emt 0:05:16]} Rc7 {[%emt 0:02:46]} 21. Rd4 {[%emt 0:
04:33]} Qb6 {[%emt 0:00:17]} 22. Qd2 {[%emt 0:01:46]} Rhc8 {[%emt 0:01:00]} 23.
Be2 {[%emt 0:03:21]} Be8 {[%emt 0:01:29]} 24. Rd1 {[%emt 0:04:19]} Bc6 {[%emt
0:08:45]} 25. h3 {[%emt 0:03:51]} f5 {[%emt 0:04:17]} 26. exf5 {[%emt 0:02:34]}
d5 {[%emt 0:01:13]} 27. fxe6 {[%emt 0:01:25]} fxe6 {[%emt 0:01:09]} 28. Bf3 {
[%emt 0:01:20]} Bf6 {[%emt 0:04:11]} 29. Rd3 {[%emt 0:00:27]} Be8 {[%emt 0:00:
40]} 30. f5 {[%emt 0:01:53]} d4 {[%emt 0:00:14]} 31. Ne4 {[%emt 0:00:55]} Be5 {
[%emt 0:00:44]} 32. a4 {[%emt 0:01:31]} exf5 {[%emt 0:00:20]} 33. gxf5 {[%emt
0:00:24]} Bf7 {[%emt 0:00:21]} 34. b4 {[%emt 0:05:56]} Rc2 {[%emt 0:00:51]} 35.
Qe1 {[%emt 0:01:19]} Qc7 {[%emt 0:00:30]} 36. Nc5 {[%emt 0:02:30]} Rxc5 {[%emt
0:00:28]} 37. bxc5 {[%emt 0:00:05]} Bc4 {[%emt 0:00:30]} 38. R3d2 {[%emt 0:02:
45]} Qxc5 {[%emt 0:00:35]} 39. Qe4 {[%emt 0:00:45]} Rc7 {[%emt 0:00:20]} 40.
Rc2 {[%emt 0:00:00]} Ba2+ {[%emt 0:00:00]} 41. Kxa2 {[%emt 0:09:31]} Qxc2 {
[%emt 0:00:45]} 42. Qxe5 {[%emt 0:04:10]} 1/2-1/2

[Event "ETCC Women 2013"]
[Site "Warsaw"]
[Date "2013.11.10"]
[Round "3"]
[White "Peng, Zhaoqin"]
[Black "Pavlidou, Ekaterini"]
[Result "1-0"]
[ECO "E15"]
[WhiteElo "2378"]
[BlackElo "2199"]
[PlyCount "103"]
[EventDate "2013.??.??"]
[EventCountry "POL"]
[WhiteTeam "Netherlands"]
[BlackTeam "Greece"]
[WhiteTeamCountry "NED"]
[BlackTeamCountry "GRE"]
[TimeControl "40/5400+30:1800+30"]

1. d4 {[%emt 0:00:00]} Nf6 {[%emt 0:00:00]} 2. c4 {[%emt 0:00:00]} e6 {[%emt 0:
00:00]} 3. Nf3 {[%emt 0:00:00]} b6 {[%emt 0:00:08]} 4. g3 {[%emt 0:00:02]} Ba6
{[%emt 0:00:33]} 5. b3 {[%emt 0:00:14]} Bb4+ {[%emt 0:00:15]} 6. Bd2 {[%emt 0:
00:04]} Be7 {[%emt 0:00:15]} 7. Bg2 {[%emt 0:00:04]} c6 {[%emt 0:01:13]} 8. O-O
{[%emt 0:00:07]} d5 {[%emt 0:00:15]} 9. Qc2 {[%emt 0:00:12]} Nbd7 {[%emt 0:01:
53]} 10. Rd1 {[%emt 0:00:24]} O-O {[%emt 0:01:38]} 11. Bf4 {[%emt 0:00:29]} Nh5
{[%emt 0:02:31]} 12. Bc1 {[%emt 0:01:45]} Nhf6 {[%emt 0:01:44]} 13. Nc3 {[%emt
0:06:35]} Rc8 {[%emt 0:03:36]} 14. e4 {[%emt 0:02:17]} dxc4 {[%emt 0:05:03]}
15. Bf4 {[%emt 0:03:38]} Bb4 {[%emt 0:07:55]} 16. Nd2 {[%emt 0:06:16]} b5 {
[%emt 0:11:41]} 17. bxc4 {[%emt 0:08:02]} bxc4 {[%emt 0:00:30]} 18. Na4 {[%emt
0:07:15]} c3 {[%emt 0:05:18]} 19. Nb3 {[%emt 0:05:30]} Qe7 {[%emt 0:04:25]} 20.
a3 {[%emt 0:11:35]} Bxa3 {[%emt 0:01:42]} 21. Nac5 {[%emt 0:00:07]} Bxc5 {
[%emt 0:02:28]} 22. dxc5 {[%emt 0:00:09]} e5 {[%emt 0:02:50]} 23. Be3 {[%emt 0:
06:04]} Nb8 {[%emt 0:01:17]} 24. Qxc3 {[%emt 0:10:48]} Rfd8 {[%emt 0:06:56]}
25. Rd2 {[%emt 0:05:27]} Rxd2 {[%emt 0:01:22]} 26. Nxd2 {[%emt 0:00:09]} Qe6 {
[%emt 0:02:54]} 27. h3 {[%emt 0:02:07]} h6 {[%emt 0:01:08]} 28. Qa5 {[%emt 0:
04:05]} Qd7 {[%emt 0:02:42]} 29. Nf3 {[%emt 0:03:01]} Re8 {[%emt 0:03:03]} 30.
Nh4 {[%emt 0:00:18]} Qd8 {[%emt 0:04:39]} 31. Qa4 {[%emt 0:01:08]} g6 {[%emt 0:
03:14]} 32. Rd1 {[%emt 0:04:15]} Qc7 {[%emt 0:01:31]} 33. Bxh6 {[%emt 0:02:30]}
Bb5 {[%emt 0:00:52]} 34. Qa2 {[%emt 0:01:18]} Kh7 {[%emt 0:01:16]} 35. Bg5 {
[%emt 0:00:56]} Kg7 {[%emt 0:02:09]} 36. Rd6 {[%emt 0:02:04]} Nh7 {[%emt 0:01:
36]} 37. Bh6+ {[%emt 0:01:26]} Kh8 {[%emt 0:01:43]} 38. Rxg6 {[%emt 0:00:10]}
Rg8 {[%emt 0:00:32]} 39. Rd6 {[%emt 0:01:41]} Na6 {[%emt 0:01:37]} 40. Qb2 {
[%emt 0:00:00]} Re8 {[%emt 0:00:00]} 41. Nf5 {[%emt 0:07:36]} Nxc5 {[%emt 0:04:
49]} 42. Bg7+ {[%emt 0:00:20]} Kg8 {[%emt 0:00:06]} 43. Bxe5 {[%emt 0:00:17]}
f6 {[%emt 0:00:46]} 44. Bxf6 {[%emt 0:02:18]} Nf8 {[%emt 0:03:29]} 45. Qd2 {
[%emt 0:08:14]} Nfe6 {[%emt 0:02:07]} 46. Bc3 {[%emt 0:04:22]} Rd8 {[%emt 0:02:
07]} 47. Rxd8+ {[%emt 0:04:37]} Qxd8 {[%emt 0:00:12]} 48. Qh6 {[%emt 0:00:24]}
Qg5 {[%emt 0:04:24]} 49. Qh8+ {[%emt 0:00:09]} Kf7 {[%emt 0:00:05]} 50. f4 {
[%emt 0:01:18]} Qg6 {[%emt 0:02:01]} 51. Kh2 {[%emt 0:03:12]} Nf8 {[%emt 0:03:
29]} 52. Bf3 {[%emt 0:01:42]} 1-0

[Event "ETCC Women 2013"]
[Site "Warsaw"]
[Date "2013.11.10"]
[Round "3"]
[White "Pogonina, Natalija"]
[Black "Exler, Veronika"]
[Result "1-0"]
[ECO "D11"]
[WhiteElo "2499"]
[BlackElo "2147"]
[PlyCount "61"]
[EventDate "2013.??.??"]
[EventCountry "POL"]
[WhiteTeam "Russia"]
[BlackTeam "Austria"]
[WhiteTeamCountry "RUS"]
[BlackTeamCountry "AUT"]
[TimeControl "40/5400+30:1800+30"]

1. d4 d5 2. c4 c6 3. Nf3 Nf6 4. Qc2 g6 5. Bf4 Na6 6. Nc3 Nb4 7. Qd2 Bf5 8. Rc1
e6 9. c5 Nh5 10. Be3 Bg7 11. h3 Nf6 12. Ne5 h5 13. Bg5 Qa5 14. a3 Nc2+ 15. Rxc2
Bxc2 16. Qxc2 Ne4 17. Bf4 g5 18. Bh2 f6 19. Nc4 dxc4 20. Qxe4 Kf7 21. e3 f5 22.
Qb1 b5 23. cxb6 axb6 24. Bxc4 Ke7 25. O-O b5 26. Bb3 b4 27. Na4 h4 28. Nc5 Rh6
29. Bd6+ Ke8 30. Nxe6 Ra7 31. axb4 1-0